[Event "Swedish Chess Championship 2019: Kadett-SM"]
[Site "Stiga Sports Arena, Arenatorget 1, Eskilstuna, Sweden, Sweden"]
[Date "2019.07.13"]
[Round "8.3"]
[White "Hall, Alexander"]
[Black "Dingertz, Erik"]
[Result "1-0"]
[TimeControl "90 minutes for 40 moves + 30 minutes for the rest of the game + 30 seconds per move from move one"]
[WhiteFideId "1738933"]
[BlackFideId "1741578"]
[WhiteElo "1805"]
[BlackElo "1959"]

1. d4 {[%clk 01:30:59]} Nf6 {[%clk 01:30:47]} {[%emt 00:00:13]} 2. c4 {[%clk
01:31:26]} {[%emt 00:00:04]} e6 {[%clk 01:31:11]} {[%emt 00:00:06]} 3. Nf3
{[%clk 01:31:51]} {[%emt 00:00:05]} d5 {[%clk 01:31:06]} {[%emt 00:00:36]} 4.
g3 {[%clk 01:32:16]} {[%emt 00:00:05]} Nbd7 {[%clk 01:30:15]} {[%emt 00:01:20]}
5. Bg2 {[%clk 01:32:30]} {[%emt 00:00:15]} b6 {[%clk 01:30:27]} {[%emt
00:00:19]} 6. O-O {[%clk 01:30:51]} {[%emt 00:02:08]} Bb7 {[%clk 01:30:47]}
{[%emt 00:00:09]} 7. cxd5 {[%clk 01:26:54]} {[%emt 00:04:27]} exd5 {[%clk
01:31:01]} {[%emt 00:00:17]} 8. Bf4 {[%clk 01:26:13]} {[%emt 00:01:11]} Be7
{[%clk 01:28:00]} {[%emt 00:03:31]} 9. Nc3 {[%clk 01:14:24]} {[%emt 00:12:19]}
O-O {[%clk 01:28:19]} {[%emt 00:00:11]} 10. Rc1 {[%clk 01:07:28]} {[%emt
00:07:26]} c5 {[%clk 01:24:30]} {[%emt 00:04:19]} 11. Qa4 {[%clk 01:02:06]}
{[%emt 00:05:52]} Re8 {[%clk 01:16:15]} {[%emt 00:08:46]} 12. Rfd1 {[%clk
00:56:01]} {[%emt 00:06:35]} Nf8 {[%clk 01:10:06]} {[%emt 00:06:39]} 13. e4
{[%clk 00:39:20]} {[%emt 00:17:11]} Ne6 {[%clk 00:46:41]} {[%emt 00:23:56]} 14.
Be3 {[%clk 00:33:34]} {[%emt 00:06:16]} dxe4 {[%clk 00:41:14]} {[%emt
00:05:57]} 15. dxc5 {[%clk 00:32:29]} {[%emt 00:01:35]} Qc7 {[%clk 00:41:29]}
{[%emt 00:00:14]} 16. Nb5 {[%clk 00:19:03]} {[%emt 00:13:58]} Qc6 {[%clk
00:40:33]} {[%emt 00:01:25]} 17. Ne5 {[%clk 00:16:47]} {[%emt 00:02:47]} Qc8
{[%clk 00:40:13]} {[%emt 00:00:49]} 18. Nd6 {[%clk 00:14:05]} {[%emt 00:03:12]}
Bxd6 {[%clk 00:39:34]} {[%emt 00:01:09]} 19. cxd6 {[%clk 00:14:29]} {[%emt
00:00:07]} Qd8 {[%clk 00:39:44]} {[%emt 00:00:19]} 20. d7 {[%clk 00:11:55]}
{[%emt 00:03:04]} Re7 {[%clk 00:40:00]} {[%emt 00:00:14]} 21. Bh3 {[%clk
00:06:28]} {[%emt 00:05:58]} Nc5 {[%clk 00:38:17]} {[%emt 00:02:13]} 22. Bxc5
{[%clk 00:06:47]} {[%emt 00:00:11]} Rxe5 {[%clk 00:38:41]} {[%emt 00:00:06]} 23.
Bd6 {[%clk 00:05:32]} {[%emt 00:01:45]} Ra5 {[%clk 00:37:59]} {[%emt 00:01:12]}
24. Qb4 {[%clk 00:05:23]} {[%emt 00:00:39]} Nxd7 {[%clk 00:37:01]} {[%emt
00:01:28]} 25. Be7 {[%clk 00:05:27]} {[%emt 00:00:26]} 1-0

[Event "Swedish Chess Championship 2019: Kadett-SM"]
[Site "Stiga Sports Arena, Arenatorget 1, Eskilstuna, Sweden, Sweden"]
[Date "2019.07.13"]
[Round "8.4"]
[White "Lindholm, Gustav"]
[Black "Bensryd, Hampus"]
[Result "1-0"]
[TimeControl "90 minutes for 40 moves + 30 minutes for the rest of the game + 30 seconds per move from move one"]
[WhiteFideId "1736515"]
[BlackFideId "1738330"]
[WhiteElo "1950"]
[BlackElo "1938"]

1. d4 {[%clk 01:30:58]} {[%emt 00:00:01]} Nf6 {[%clk 01:30:36]} {[%emt
00:00:25]} 2. c4 {[%clk 01:31:22]} {[%emt 00:00:05]} e6 {[%clk 01:30:59]}
{[%emt 00:00:07]} 3. Nc3 {[%clk 01:31:44]} {[%emt 00:00:07]} Bb4 {[%clk
01:31:17]} {[%emt 00:00:13]} 4. Qc2 {[%clk 01:32:09]} {[%emt 00:00:06]} O-O
{[%clk 01:31:09]} {[%emt 00:00:37]} 5. a3 {[%clk 01:32:34]} {[%emt 00:00:05]}
Bxc3+ {[%clk 01:31:32]} {[%emt 00:00:07]} 6. Qxc3 {[%clk 01:32:57]} {[%emt
00:00:07]} b6 {[%clk 01:30:23]} {[%emt 00:01:39]} 7. Bg5 {[%clk 01:33:01]}
{[%emt 00:00:26]} Bb7 {[%clk 01:30:06]} {[%emt 00:00:48]} 8. Nf3 {[%clk
01:32:47]} {[%emt 00:00:43]} d6 {[%clk 01:28:45]} {[%emt 00:01:51]} 9. g3
{[%clk 01:31:11]} {[%emt 00:02:06]} Nbd7 {[%clk 01:28:00]} {[%emt 00:01:15]} 10.
Bg2 {[%clk 01:29:48]} {[%emt 00:01:53]} h6 {[%clk 01:26:19]} {[%emt 00:02:12]}
11. Bxf6 {[%clk 01:29:07]} {[%emt 00:01:10]} Nxf6 {[%clk 01:24:29]} {[%emt
00:02:20]} 12. O-O {[%clk 01:28:17]} {[%emt 00:01:19]} Ne4 {[%clk 01:19:46]}
{[%emt 00:05:15]} 13. Qc2 {[%clk 01:27:13]} {[%emt 00:01:34]} f5 {[%clk
01:18:19]} {[%emt 00:01:57]} 14. Rfd1 {[%clk 01:25:06]} {[%emt 00:02:37]} Qf6
{[%clk 01:14:20]} {[%emt 00:04:28]} 15. e3 {[%clk 01:20:36]} {[%emt 00:04:59]}
Rae8 {[%clk 01:09:12]} {[%emt 00:05:38]} 16. b4 {[%clk 01:14:26]} {[%emt
00:06:41]} c5 {[%clk 01:01:01]} {[%emt 00:08:42]} 17. bxc5 {[%clk 01:11:50]}
{[%emt 00:03:05]} bxc5 {[%clk 01:00:38]} {[%emt 00:00:53]} 18. Rab1 {[%clk
01:10:14]} {[%emt 00:02:06]} Ba8 {[%clk 00:58:34]} {[%emt 00:02:34]} 19. Rb3
{[%clk 00:53:46]} {[%emt 00:16:57]} Bc6 {[%clk 00:57:20]} {[%emt 00:01:44]} 20.
Rb2 {[%clk 00:49:07]} {[%emt 00:05:09]} Rb8 {[%clk 00:56:22]} {[%emt 00:01:28]}
21. Rdb1 {[%clk 00:46:07]} {[%emt 00:03:30]} Rxb2 {[%clk 00:55:44]} {[%emt
00:01:08]} 22. Rxb2 {[%clk 00:45:27]} {[%emt 00:01:08]} g5 {[%clk 00:55:14]}
{[%emt 00:01:00]} 23. Qd3 {[%clk 00:32:51]} {[%emt 00:13:07]} f4 {[%clk
00:47:08]} {[%emt 00:08:35]} 24. exf4 {[%clk 00:24:08]} {[%emt 00:09:12]} gxf4
{[%clk 00:45:22]} {[%emt 00:02:17]} 25. Re2 {[%clk 00:20:26]} {[%emt 00:04:11]}
fxg3 {[%clk 00:40:14]} {[%emt 00:05:39]} 26. hxg3 {[%clk 00:19:51]} {[%emt
00:01:05]} Nxg3 {[%clk 00:30:25]} {[%emt 00:10:19]} 27. fxg3 {[%clk 00:20:00]}
{[%emt 00:00:21]} Bxf3 {[%clk 00:30:50]} {[%emt 00:00:05]} 28. Bxf3 {[%clk
00:20:11]} {[%emt 00:00:19]} Qxd4+ {[%clk 00:27:40]} {[%emt 00:03:40]} 29. Qxd4
{[%clk 00:20:08]} {[%emt 00:00:33]} cxd4 {[%clk 00:28:07]} {[%emt 00:00:03]} 30.
Bg4 {[%clk 00:18:01]} {[%emt 00:02:37]} e5 {[%clk 00:27:37]} {[%emt 00:01:00]}
31. Be6+ {[%clk 00:17:19]} {[%emt 00:01:11]} Kg7 {[%clk 00:27:54]} {[%emt
00:00:13]} 32. Rf2 {[%clk 00:10:56]} {[%emt 00:06:54]} Re8 {[%clk 00:27:11]}
{[%emt 00:01:11]} 33. Bd5 {[%clk 00:10:16]} {[%emt 00:01:10]} e4 {[%clk
00:25:08]} {[%emt 00:02:34]} 34. Rf7+ {[%clk 00:08:52]} {[%emt 00:01:54]} Kg6
{[%clk 00:24:45]} {[%emt 00:00:50]} 35. Rf4 {[%clk 00:08:13]} {[%emt 00:01:12]}
Kg5 {[%clk 00:24:05]} {[%emt 00:01:10]} 36. Rxe4 {[%clk 00:07:56]} {[%emt
00:00:47]} Rb8 {[%clk 00:24:26]} {[%emt 00:00:10]} 37. Rxd4 {[%clk 00:05:31]}
{[%emt 00:02:55]} Rb3 {[%clk 00:24:39]} {[%emt 00:00:16]} 38. Kg2 {[%clk
00:04:34]} {[%emt 00:01:27]} Rxa3 {[%clk 00:24:59]} {[%emt 00:00:10]} 39. Bb7
{[%clk 00:03:51]} {[%emt 00:01:12]} Ra2+ {[%clk 00:23:14]} {[%emt 00:02:16]} 40.
Kh3 {[%clk 00:04:07]} {[%emt 00:00:14]} a5 {[%clk 00:20:41]} {[%emt 00:03:03]}
41. Rd5+ {[%clk 00:04:26]} {[%emt 00:00:11]} Kf6 {[%clk 00:20:51]} {[%emt
00:00:20]} 42. Rxd6+ {[%clk 00:04:48]} {[%emt 00:00:08]} Ke5 {[%clk 00:20:45]}
{[%emt 00:00:36]} 43. Rd5+ {[%clk 00:04:25]} {[%emt 00:00:53]} Ke6 {[%clk
00:20:45]} {[%emt 00:00:29]} 44. c5 {[%clk 00:02:41]} {[%emt 00:02:15]} a4
{[%clk 00:20:21]} {[%emt 00:00:53]} 45. c6 {[%clk 00:02:52]} {[%emt 00:00:19]}
Rc2 {[%clk 00:20:41]} {[%emt 00:00:10]} 46. Ra5 {[%clk 00:02:38]} {[%emt
00:00:45]} Rc4 {[%clk 00:20:25]} {[%emt 00:00:45]} 47. g4 {[%clk 00:01:50]}
{[%emt 00:01:18]} Rc3+ {[%clk 00:20:08]} {[%emt 00:00:47]} 48. Kh4 {[%clk
00:02:11]} {[%emt 00:00:09]} a3 {[%clk 00:20:35]} {[%emt 00:00:04]} 49. Kh5
{[%clk 00:00:56]} {[%emt 00:01:45]} Rh3+ {[%clk 00:20:46]} {[%emt 00:00:19]} 50.
Kg6 {[%clk 00:01:06]} {[%emt 00:00:20]} Kd6 {[%clk 00:21:09]} {[%emt 00:00:07]}
51. Ra7 {[%clk 00:27:16]} {[%emt 00:04:20]} Rg3 {[%clk 00:45:47]} {[%emt
00:05:53]} 52. Kf5 {[%clk 00:24:54]} {[%emt 00:02:52]} Rf3+ {[%clk 00:46:00]}
{[%emt 00:00:17]} 53. Ke4 {[%clk 00:24:15]} {[%emt 00:01:08]} Rc3 {[%clk
00:45:05]} {[%emt 00:01:24]} 54. Ba8 {[%clk 00:23:08]} {[%emt 00:01:38]} Rc4+
{[%clk 00:44:55]} {[%emt 00:00:40]} 55. Kf3 {[%clk 00:23:11]} {[%emt 00:00:28]}
Rc3+ {[%clk 00:44:50]} {[%emt 00:00:35]} 56. Kf4 {[%clk 00:23:35]} {[%emt
00:00:06]} Kc5 {[%clk 00:44:41]} {[%emt 00:00:38]} 57. Kf5 {[%clk 00:20:56]}
{[%emt 00:03:09]} Kb6 {[%clk 00:44:39]} {[%emt 00:00:32]} 58. Rb7+ {[%clk
00:18:42]} {[%emt 00:02:44]} Ka6 {[%clk 00:44:55]} {[%emt 00:00:14]} 59. Rb1
{[%clk 00:16:01]} {[%emt 00:03:11]} Ka7 {[%clk 00:44:23]} {[%emt 00:01:02]} 60.
Bb7 {[%clk 00:16:04]} {[%emt 00:00:27]} Rc5+ {[%clk 00:44:38]} {[%emt
00:00:15]} 61. Kf6 {[%clk 00:13:59]} {[%emt 00:02:36]} Kb8 {[%clk 00:42:37]}
{[%emt 00:02:31]} 62. Ra1 {[%clk 00:07:36]} {[%emt 00:06:53]} Ra5 {[%clk
00:41:01]} {[%emt 00:02:06]} 63. Kg6 {[%clk 00:07:40]} {[%emt 00:00:26]} Rg5+
{[%clk 00:41:17]} {[%emt 00:00:14]} 64. Kxh6 {[%clk 00:08:02]} {[%emt
00:00:08]} Rxg4 {[%clk 00:41:41]} {[%emt 00:00:05]} 65. Rxa3 {[%clk 00:08:24]}
{[%emt 00:00:08]} Kc7 {[%clk 00:41:17]} {[%emt 00:00:54]} 66. Ra5 {[%clk
00:08:45]} {[%emt 00:00:10]} Rg1 {[%clk 00:40:48]} {[%emt 00:00:59]} 67. Rg5
{[%clk 00:09:07]} {[%emt 00:00:08]} Rh1+ {[%clk 00:40:33]} {[%emt 00:00:45]} 68.
Kg6 {[%clk 00:09:24]} {[%emt 00:00:13]} Rd1 {[%clk 00:40:04]} {[%emt 00:00:57]}
69. Kf6 {[%clk 00:09:28]} {[%emt 00:00:27]} Re1 {[%clk 00:40:16]} {[%emt
00:00:17]} 70. Rg7+ {[%clk 00:09:01]} {[%emt 00:00:58]} Kb8 {[%clk 00:40:06]}
{[%emt 00:00:40]} 71. Re7 {[%clk 00:09:07]} {[%emt 00:00:24]} Rf1+ {[%clk
00:40:19]} {[%emt 00:00:17]} 72. Ke6 {[%clk 00:09:30]} {[%emt 00:00:06]} Re1+
{[%clk 00:39:56]} {[%emt 00:00:53]} 73. Kd7 {[%clk 00:09:54]} {[%emt 00:00:07]}
Rd1+ {[%clk 00:40:14]} {[%emt 00:00:12]} 74. Ke8 {[%clk 00:10:13]} {[%emt
00:00:11]} Rh1 {[%clk 00:39:48]} {[%emt 00:00:56]} 75. Kd8 {[%clk 00:10:35]}
{[%emt 00:00:08]} Rh8 {[%clk 00:39:54]} {[%emt 00:00:24]} 76. Re8 {[%clk
00:10:57]} {[%emt 00:00:08]} Rh7 {[%clk 00:40:17]} {[%emt 00:00:06]} 77. Bc8
{[%clk 00:10:51]} {[%emt 00:00:36]} Rc7 {[%clk 00:36:48]} {[%emt 00:04:00]} 78.
Bd7 {[%clk 00:11:11]} {[%emt 00:00:10]} Ra7 {[%clk 00:37:14]} {[%emt 00:00:04]}
79. Re3 {[%clk 00:11:26]} {[%emt 00:00:14]} Ra3 {[%clk 00:36:41]} {[%emt
00:01:04]} 80. c7+ {[%clk 00:11:41]} {[%emt 00:00:15]} 1-0

[Event "Swedish Chess Championship 2019: Kadett-SM"]
[Site "Stiga Sports Arena, Arenatorget 1, Eskilstuna, Sweden, Sweden"]
[Date "2019.07.13"]
[Round "8.5"]
[White "Ivarsson, Sebastian"]
[Black "Johansson-Ohman, Daniel"]
[Result "1/2-1/2"]
[TimeControl "90 minutes for 40 moves + 30 minutes for the rest of the game + 30 seconds per move from move one"]
[WhiteFideId "1738593"]
[BlackFideId "1736361"]
[WhiteElo "2079"]
[BlackElo "1825"]

1. d4 {[%clk 00:24:17]} Nf6 {[%clk 01:30:30]} 2. c4 {[%clk 00:24:17]} g6 {[%clk
01:30:30]} 3. Nc3 {[%clk 00:24:17]} Bg7 {[%clk 01:29:11]} {[%emt 18:05:17]} 4.
Nf3 {[%clk 01:31:31]} d6 {[%clk 01:29:11]} 5. g3 {[%clk 01:31:31]} O-O {[%clk
01:29:11]} 6. Bg2 {[%clk 01:31:31]} Nc6 {[%clk 01:29:11]} 7. O-O {[%clk
01:31:31]} e5 {[%clk 01:29:11]} 8. dxe5 {[%clk 01:31:31]} Nxe5 {[%clk
01:29:11]} 9. Nxe5 dxe5 {[%clk 01:26:41]} 10. Qc2 {[%clk 01:20:26]} {[%emt
00:00:21]} c6 {[%clk 01:25:50]} {[%emt 00:01:21]} 11. b3 {[%clk 01:18:26]}
{[%emt 00:02:29]} Qc7 {[%clk 01:10:06]} {[%emt 00:16:14]} 12. Ba3 {[%clk
01:12:09]} {[%emt 00:06:47]} Re8 {[%clk 01:01:17]} {[%emt 00:09:20]} 13. Rfd1
{[%clk 01:09:37]} {[%emt 00:03:02]} Bf8 {[%clk 01:01:33]} {[%emt 00:00:14]} 14.
Bb2 {[%clk 01:06:56]} {[%emt 00:03:11]} Bf5 {[%clk 00:58:19]} {[%emt 00:03:44]}
15. e4 {[%clk 01:03:09]} {[%emt 00:04:17]} Be6 {[%clk 00:53:19]} {[%emt
00:05:31]} 16. h3 {[%clk 00:52:02]} {[%emt 00:11:36]} b5 {[%clk 00:50:06]}
{[%emt 00:03:44]} 17. cxb5 {[%clk 00:47:40]} {[%emt 00:04:51]} cxb5 {[%clk
00:49:47]} {[%emt 00:00:49]} 18. Qe2 {[%clk 00:46:25]} {[%emt 00:01:45]} a6
{[%clk 00:46:35]} {[%emt 00:03:42]} 19. Nd5 {[%clk 00:45:09]} {[%emt 00:01:45]}
Bxd5 {[%clk 00:45:43]} {[%emt 00:01:23]} 20. exd5 {[%clk 00:45:29]} {[%emt
00:00:10]} Bd6 {[%clk 00:35:00]} {[%emt 00:11:14]} 21. Rac1 {[%clk 00:43:16]}
{[%emt 00:02:42]} Qe7 {[%clk 00:34:46]} {[%emt 00:00:44]} 22. Rc6 {[%clk
00:41:35]} {[%emt 00:02:11]} Nd7 {[%clk 00:29:28]} {[%emt 00:05:48]} 23. Rdc1
{[%clk 00:34:00]} {[%emt 00:08:05]} Nb8 {[%clk 00:25:38]} {[%emt 00:04:21]} 24.
Rc8 {[%clk 00:30:24]} {[%emt 00:04:05]} Nd7 {[%clk 00:25:45]} {[%emt 00:00:23]}
25. Rxa8 {[%clk 00:28:16]} {[%emt 00:02:38]} Rxa8 {[%clk 00:26:08]} {[%emt
00:00:07]} 26. Qc2 {[%clk 00:23:50]} {[%emt 00:04:56]} Re8 {[%clk 00:23:30]}
{[%emt 00:03:09]} 27. Qc6 {[%clk 00:21:10]} {[%emt 00:03:10]} Nb8 {[%clk
00:23:48]} {[%emt 00:00:13]} 28. Qb6 {[%clk 00:21:10]} {[%emt 00:00:29]} f6
{[%clk 00:20:05]} {[%emt 00:04:14]} 29. a4 {[%clk 00:19:37]} {[%emt 00:02:02]}
bxa4 {[%clk 00:19:10]} {[%emt 00:01:26]} 30. bxa4 {[%clk 00:19:53]} {[%emt
00:00:15]} e4 {[%clk 00:16:08]} {[%emt 00:03:31]} 31. Bxe4 {[%clk 00:09:15]}
{[%emt 00:11:08]} Nd7 {[%clk 00:13:40]} {[%emt 00:02:58]} 32. Qb7 {[%clk
00:03:01]} {[%emt 00:06:44]} Qxe4 {[%clk 00:13:12]} {[%emt 00:00:57]} 33. Qxd7
{[%clk 00:03:19]} {[%emt 00:00:13]} Bxg3 {[%clk 00:12:52]} {[%emt 00:00:51]} 34.
Qg4 {[%clk 00:01:13]} {[%emt 00:02:35]} Bf4 {[%clk 00:05:02]} {[%emt 00:08:19]}
35. Rc6 {[%clk 00:00:54]} {[%emt 00:00:49]} Qxd5 {[%clk 00:03:26]} {[%emt
00:02:06]} 36. Rc8 {[%clk 00:01:18]} {[%emt 00:00:06]} Rxc8 {[%clk 00:02:49]}
{[%emt 00:01:07]} 37. Qxc8+ {[%clk 00:01:37]} {[%emt 00:00:12]} Kg7 {[%clk
00:01:57]} {[%emt 00:01:22]} 38. Qxa6 {[%clk 00:00:52]} {[%emt 00:01:15]} Qd1+
{[%clk 00:02:18]} {[%emt 00:00:08]} 39. Qf1 {[%clk 00:01:19]} {[%emt 00:00:03]}
Qxa4 {[%clk 00:02:11]} {[%emt 00:00:37]} 40. Qe1 {[%clk 00:01:08]} {[%emt
00:00:41]} Qd7 {[%clk 00:01:30]} {[%emt 00:01:12]} 41. Qe4 {[%clk 00:29:58]}
{[%emt 00:01:39]} 1/2-1/2

[Event "Swedish Chess Championship 2019: Kadett-SM"]
[Site "Stiga Sports Arena, Arenatorget 1, Eskilstuna, Sweden, Sweden"]
[Date "2019.07.13"]
[Round "8.6"]
[White "Alfredsson, Daniel"]
[Black "Ostling, Albin"]
[Result "1-0"]
[TimeControl "90 minutes for 40 moves + 30 minutes for the rest of the game + 30 seconds per move from move one"]
[WhiteFideId "1742205"]
[BlackFideId "1746430"]
[WhiteElo "1652"]
[BlackElo "1660"]

1. e4 {[%clk 01:30:43]} {[%emt 00:00:17]} e5 {[%clk 01:30:57]} {[%emt
00:00:04]} 2. Nf3 {[%clk 01:31:09]} {[%emt 00:00:03]} Nc6 {[%clk 01:31:23]}
{[%emt 00:00:05]} 3. Bc4 {[%clk 01:31:32]} {[%emt 00:00:06]} Nf6 {[%clk
01:31:47]} {[%emt 00:00:07]} 4. d3 {[%clk 01:31:44]} {[%emt 00:00:18]} Be7
{[%clk 01:32:00]} {[%emt 00:00:17]} 5. c3 {[%clk 01:31:54]} {[%emt 00:00:19]}
O-O {[%clk 01:31:06]} {[%emt 00:01:24]} 6. O-O {[%clk 01:32:00]} {[%emt
00:00:24]} d6 {[%clk 01:30:13]} {[%emt 00:01:24]} 7. Re1 {[%clk 01:31:55]}
{[%emt 00:00:33]} Na5 {[%clk 01:27:50]} {[%emt 00:02:55]} 8. Bb5 {[%clk
01:31:43]} {[%emt 00:00:42]} a6 {[%clk 01:27:45]} {[%emt 00:00:36]} 9. Ba4
{[%clk 01:32:03]} {[%emt 00:00:09]} b5 {[%clk 01:28:02]} {[%emt 00:00:14]} 10.
Bc2 {[%clk 01:32:22]} {[%emt 00:00:10]} c5 {[%clk 01:24:40]} {[%emt 00:03:53]}
11. d4 {[%clk 01:26:20]} {[%emt 00:06:31]} Qc7 {[%clk 01:20:56]} {[%emt
00:04:14]} 12. Nbd2 {[%clk 01:21:21]} {[%emt 00:05:28]} cxd4 {[%clk 01:17:51]}
{[%emt 00:03:35]} 13. cxd4 {[%clk 01:21:28]} {[%emt 00:00:23]} Bg4 {[%clk
01:13:38]} {[%emt 00:04:44]} 14. d5 {[%clk 01:13:49]} {[%emt 00:08:09]} Nb7
{[%clk 00:55:50]} {[%emt 00:18:18]} 15. Nf1 {[%clk 01:09:33]} {[%emt 00:04:45]}
Bxf3 {[%clk 00:46:19]} {[%emt 00:10:01]} 16. gxf3 {[%clk 01:09:57]} {[%emt
00:00:06]} Rac8 {[%clk 00:43:10]} {[%emt 00:03:39]} 17. Re2 {[%clk 01:07:43]}
{[%emt 00:02:44]} Nh5 {[%clk 00:40:30]} {[%emt 00:03:10]} 18. Ng3 {[%clk
01:06:53]} {[%emt 00:01:20]} Nf4 {[%clk 00:35:32]} {[%emt 00:05:29]} 19. Bxf4
{[%clk 01:05:29]} {[%emt 00:01:54]} exf4 {[%clk 00:35:52]} {[%emt 00:00:09]} 20.
Nf5 {[%clk 01:02:04]} {[%emt 00:03:55]} Bf6 {[%clk 00:35:06]} {[%emt 00:01:16]}
21. Rb1 {[%clk 00:58:02]} {[%emt 00:04:32]} h5 {[%clk 00:27:23]} {[%emt
00:08:14]} 22. b4 {[%clk 00:52:07]} {[%emt 00:06:24]} Qb6 {[%clk 00:19:56]}
{[%emt 00:07:57]} 23. Rd2 {[%clk 00:47:53]} {[%emt 00:04:44]} g6 {[%clk
00:19:26]} {[%emt 00:01:01]} 24. Nd4 {[%clk 00:47:48]} {[%emt 00:00:35]} Bxd4
{[%clk 00:19:29]} {[%emt 00:00:27]} 25. Rxd4 {[%clk 00:47:53]} {[%emt
00:00:24]} Rxc2 {[%clk 00:19:41]} {[%emt 00:00:19]} 26. Qxc2 {[%clk 00:47:21]}
{[%emt 00:01:02]} Qxd4 {[%clk 00:20:03]} {[%emt 00:00:08]} 27. Qc7 {[%clk
00:47:36]} {[%emt 00:00:14]} Qa7 {[%clk 00:17:30]} {[%emt 00:03:03]} 28. Rc1
{[%clk 00:43:50]} {[%emt 00:04:15]} Qb8 {[%clk 00:16:44]} {[%emt 00:01:17]} 29.
Qb6 {[%clk 00:44:10]} {[%emt 00:00:10]} Rc8 {[%clk 00:15:39]} {[%emt 00:01:35]}
30. Rxc8+ {[%clk 00:44:23]} {[%emt 00:00:18]} Qxc8 {[%clk 00:16:01]} {[%emt
00:00:08]} 31. Qxa6 {[%clk 00:44:46]} {[%emt 00:00:06]} Qd7 {[%clk 00:13:58]}
{[%emt 00:02:34]} 32. Qc6 {[%clk 00:40:36]} {[%emt 00:04:40]} Qe7 {[%clk
00:12:21]} {[%emt 00:02:08]} 33. Qxb5 {[%clk 00:40:48]} {[%emt 00:00:18]} Kf8
{[%clk 00:08:59]} {[%emt 00:03:51]} 34. a4 {[%clk 00:40:28]} {[%emt 00:00:50]}
Qc7 {[%clk 00:06:40]} {[%emt 00:02:50]} 35. a5 {[%clk 00:40:02]} {[%emt
00:00:55]} Nd8 {[%clk 00:05:20]} {[%emt 00:01:51]} 36. Qa6 {[%clk 00:39:23]}
{[%emt 00:01:09]} h4 {[%clk 00:04:46]} {[%emt 00:01:04]} 37. h3 {[%clk
00:38:45]} {[%emt 00:01:07]} Nb7 {[%clk 00:04:37]} {[%emt 00:00:39]} 38. Qc6
{[%clk 00:36:55]} {[%emt 00:02:20]} Qb8 {[%clk 00:04:37]} {[%emt 00:00:30]} 39.
Qb6 {[%clk 00:36:40]} {[%emt 00:00:44]} Qc8 {[%clk 00:04:19]} {[%emt 00:00:49]}
40. a6 {[%clk 00:36:50]} {[%emt 00:00:19]} Nd8 {[%clk 00:03:43]} {[%emt
00:01:06]} 41. Qxd6+ {[%clk 00:36:38]} {[%emt 00:00:42]} Ke8 {[%clk 00:03:06]}
{[%emt 00:01:07]} 42. a7 {[%clk 00:36:45]} {[%emt 00:00:22]} Qb7 {[%clk
00:01:09]} {[%emt 00:02:28]} 43. Qb8 {[%clk 00:36:43]} {[%emt 00:00:32]} 1-0

[Event "Swedish Chess Championship 2019: Kadett-SM"]
[Site "Stiga Sports Arena, Arenatorget 1, Eskilstuna, Sweden, Sweden"]
[Date "2019.07.14"]
[Round "9.1"]
[White "Lindholm, Gustav"]
[Black "Nguyen, Gabriel"]
[Result "1/2-1/2"]
[TimeControl "90 minutes for 40 moves + 30 minutes for the rest of the game + 30 seconds per move from move one"]
[WhiteFideId "1736515"]
[BlackFideId "1720791"]
[WhiteElo "1950"]
[BlackElo "2035"]

1. d4 {[%clk 01:30:57]} {[%emt 00:00:02]} d5 {[%clk 01:30:09]} {[%emt
00:00:52]} 2. c4 {[%clk 01:31:19]} {[%emt 00:00:08]} e6 {[%clk 01:30:33]}
{[%emt 00:00:05]} 3. Nc3 {[%clk 01:31:43]} {[%emt 00:00:06]} f5 {[%clk
01:30:00]} {[%emt 00:01:03]} 4. Nf3 {[%clk 01:31:31]} {[%emt 00:00:42]} Nf6
{[%clk 01:30:24]} {[%emt 00:00:06]} 5. Bg5 {[%clk 01:31:02]} {[%emt 00:00:59]}
Be7 {[%clk 01:30:36]} {[%emt 00:00:18]} 6. e3 {[%clk 01:29:50]} {[%emt
00:01:43]} c6 {[%clk 01:30:17]} {[%emt 00:00:49]} 7. Be2 {[%clk 01:28:33]}
{[%emt 00:01:46]} O-O {[%clk 01:29:27]} {[%emt 00:01:20]} 8. O-O {[%clk
01:27:26]} {[%emt 00:01:37]} Ne4 {[%clk 01:27:01]} {[%emt 00:02:56]} 9. Bxe7
{[%clk 01:26:22]} {[%emt 00:01:34]} Qxe7 {[%clk 01:27:15]} {[%emt 00:00:16]} 10.
Ne5 {[%clk 01:25:04]} {[%emt 00:01:47]} Nd7 {[%clk 01:25:12]} {[%emt 00:02:34]}
11. f4 {[%clk 01:22:36]} {[%emt 00:02:57]} Nxe5 {[%clk 01:24:10]} {[%emt
00:01:31]} 12. fxe5 {[%clk 01:21:45]} {[%emt 00:01:21]} Bd7 {[%clk 01:24:05]}
{[%emt 00:00:35]} 13. Qc2 {[%clk 01:17:32]} {[%emt 00:04:43]} Rac8 {[%clk
01:20:43]} {[%emt 00:03:53]} 14. c5 {[%clk 01:15:07]} {[%emt 00:02:55]} Qh4
{[%clk 01:14:04]} {[%emt 00:07:08]} 15. Rf3 {[%clk 01:12:18]} {[%emt 00:03:20]}
Qh6 {[%clk 00:53:26]} {[%emt 00:21:08]} 16. Rh3 {[%clk 01:05:15]} {[%emt
00:07:33]} Qg5 {[%clk 00:49:56]} {[%emt 00:04:00]} 17. b4 {[%clk 00:54:25]}
{[%emt 00:11:21]} a6 {[%clk 00:46:36]} {[%emt 00:03:50]} 18. a4 {[%clk
00:49:18]} {[%emt 00:05:37]} Qe7 {[%clk 00:44:49]} {[%emt 00:02:15]} 19. Rf3
{[%clk 00:43:21]} {[%emt 00:06:28]} g5 {[%clk 00:42:08]} {[%emt 00:03:11]} 20.
Rb1 {[%clk 00:37:03]} {[%emt 00:06:49]} Kh8 {[%clk 00:35:25]} {[%emt 00:07:12]}
1/2-1/2